[Event "FISU WUMSCC Men 2024"]
[Site "Entebbe"]
[Date "2024.06.25"]
[Round "1.1"]
[White "Janik, Igor"]
[Black "Alfaitori, Abdallah"]
[Result "1-0"]
[ECO "A05"]
[WhiteElo "2511"]
[BlackElo "1947"]
[Annotator "TA"]
[PlyCount "115"]
[EventDate "2024.06.24"]
[EventType "swiss"]
[EventCountry "UGA"]
[SourceTitle "playchess.com"]
[Source "ChessBase"]
[SourceQuality "1"]
[TimeControl "5400+30"]

{[%evp 11,115,-8,-2,-6,0,-7,37,41,43,38,49,51,56,31,50,34,58,33,38,35,40,33,39,30,50,35,35,37,41,30,40,36,38,30,189,199,197,200,209,205,197,212,242,118,118,122,121,130,121,89,90,90,113,66,59,57,46,39,71,42,47,56,331,316,331,317,395,344,361,304,277,294,447,444,428,377,391,345,495,484,508,453,1205,1200,1220,1162,2443,2335,5722,4479,6540,6752,29983,29983,29986,29987,29987,29988,29990,29991,29991,29992,29992,29993,29994,29995]} 1. Nf3 {[%emt 0:00:30]} d5 {[%emt 0:00:18]} 2. g3 {[%emt 0:00:00]} Nf6 {[%emt 0:00:57]} 3. Bg2 {[%emt 0:00:05]} g6 {[%emt 0:00:35]} 4. b3 {[%emt 0:00:49]} Bg7 {[%emt 0:00:31]} 5. Bb2 {[%emt 0:00:05]} O-O {[%emt 0:01:12]} 6. O-O {[%emt 0:00:35]} c5 {[%emt 0:01:38]} 7. e3 {[%emt 0:00:05]} Nc6 {[%emt 0:01:53]} 8. Ne5 {[%emt 0:00:12]} Be6 {[%emt 0:03:24]} 9. Nxc6 {[%emt 0:00:25] White is slightly better.} bxc6 {[%emt 0:00:09]} 10. d3 $1 {[%emt 0:00:36]} Nd7 {[%emt 0:04:40]} 11. Bxg7 {[%emt 0:00:35]} Kxg7 {[%emt 0:00:08]} 12. Qc1 {[%emt 0:00:15]} Qc7 {[%emt 0:01:49]} 13. Nd2 {[%emt 0:00:36][%cal Bb1d2,Bd2f3,Bf3e5][%mdl 32]} Nf6 {[%emt 0:04:17]} 14. Qb2 {[%emt 0:01:53]} Kg8 {[%emt 0:01:50]} 15. Qc3 {[%emt 0:01:57]} Qb6 {[%emt 0:01:19]} 16. Nf3 {[%emt 0:01:12]} h6 {[%emt 0:08:44]} 17. Rfe1 {[%emt 0:01:22]} Qb4 {[%emt 0:03:08]} 18. Qb2 {[%emt 0:00:18]} a5 {[%emt 0:01:30]} 19. Ne5 {[%emt 0:01:35]} Qb6 {[%emt 0:02:35]} 20. a4 {[%emt 0:01:49]} Rfc8 {[%emt 0:07:45]} 21. e4 {[%emt 0:00:48]} Rab8 {[%emt 0:07:14][%cal Oc5c4]} 22. Qa3 {[%emt 0:01:34][%cal Od3d4]} Qb4 $2 {[%emt 0:04:36] [#]} (22... Kg7 $11) 23. exd5 $1 $18 {[%emt 0:00:33]} Qxa3 {[%emt 0:01:44]} 24. Rxa3 {[%emt 0:00:09]} cxd5 {[%emt 0:08:29] [#]} 25. Nxg6 $1 {[%emt 0:00:10][%mdl 512]} fxg6 {[%emt 0:00:18]} (25... Kg7 26. Nf4) 26. Rxe6 {[%emt 0:00:06]} Kf7 {[%emt 0:01:26]} 27. Re5 {[%emt 0:00:26]} (27. Bh3 $18) 27... Rd8 {[%emt 0:06:10]} 28. Ra1 {[%emt 0:00:10]} Rd6 {[%emt 0:01:44]} 29. Rae1 {[%emt 0:00:13]} e6 {[%emt 0:01:52]} 30. f4 {[%emt 0:00:13]} Ng4 {[%emt 0:03:30]} 31. R5e2 {[%emt 0:00:14]} d4 {[%emt 0:01:15]} 32. Bf3 {[%emt 0:00:11]} (32. Re4 $16) 32... Ne3 $14 {[%emt 0:00:33]} 33. Rxe3 {[%emt 0:00:12]} dxe3 {[%emt 0:00:07]} 34. Rxe3 {[%emt 0:00:01][%mdl 4096] Endgame. KRR-KRB} Kf6 {[%emt 0:04:07]} 35. Re5 {[%emt 0:00:08]} Rc8 {[%emt 0:00:15]} 36. h4 {[%emt 0:00:39]} h5 $2 {[%emt 0:04:34][%mdl 8192] White stays focused until the end.} (36... Rdd8 $14) 37. Be4 {[%emt 0:00:03]} Rd7 {[%emt 0:00:39]} 38. Kf2 Ra7 {[%emt 0:04:54]} 39. Ke3 {[%emt 0:00:07]} Rd7 {[%emt 0:00:45]} 40. Rg5 {[%emt 0:00:04]} Rg7 {[%emt 0:00:21]} 41. Kd2 {[%emt 0:00:03]} Ke7 {[%emt 0:02:07]} (41... Rgg8 {keeps fighting.} 42. Bb7 Rc7) 42. Kc3 $18 {[%emt 0:01:27]} Kd6 {[%emt 0:01:18]} 43. Kc4 {[%emt 0:00:04]} (43. Rxg6 Rxg6 44. Bxg6 Rg8 45. Bxh5 Rxg3 $11) 43... Rb8 {[%emt 0:00:30]} 44. c3 {[%emt 0:00:59][%cal Bc2c3,Bc3b4,Bb4b5,Bb5b6][%mdl 32]} (44. Rxg6 Rxg6 45. Bxg6 Rg8 46. Bxh5 Rxg3 $16) 44... Rbg8 {[%emt 0:02:36]} (44... Rc8 {was called for.} 45. Bf3 (45. Rxg6 Rxg6 46. Bxg6 Rg8 $11) (45. Bxg6 Rh8 $18) 45... Rh7) 45. Rxc5 {[%emt 0:00:09]} Rc7 {[%emt 0:00:35]} 46. d4 {[%emt 0:00:07][%cal Bd3d4,Bd4c5][%mdl 32]} Rxc5+ {[%emt 0:02:52]} (46... Ra7 $142 47. Kd3 Ra6) 47. dxc5+ {[%emt 0:00:02] KR-KB} Kc7 {[%emt 0:00:29]} 48. b4 {[%emt 0:00:02]} axb4 {[%emt 0:00:34]} 49. cxb4 {[%emt 0:00:02] aiming for a5.} e5 {[%emt 0:00:19]} 50. fxe5 {[%emt 0:00:09][%cal Bf4e5,Be5e6,Be6e7][%mdl 32]} g5 {[%emt 0:00:20]} 51. b5 {[%emt 0:00:04] White threatens b6+ and mate.} gxh4 {[%emt 0:00:19]} 52. b6+ {[%emt 0:00:06] White mates.} Kb8 {[%emt 0:00:29]} 53. gxh4 {[%emt 0:00:05]} Rg4 {[%emt 0:00:18]} 54. Kd5 {[%emt 0:00:05]} Rxh4 {[%emt 0:00:43]} 55. e6 {[%emt 0:00:05]} Rg4 {[%emt 0:00:35]} 56. e7 {[%emt 0:00:07]} Rg8 {[%emt 0:00:16]} 57. c6 {[%emt 0:00:07]} h4 {[%emt 0:01:10]} 58. Kd6 {[%emt 0:00:06] Weighted Error Value: White=0.12 (very precise) /Black=0.45.  Loses game:     	---       	Black=1      Mistake:       	White=2     	Black=4      Inaccurate:     	White=1     	Black=2      OK:         	White=14    	Black=11     Best:        	White=2     	Black=2      Strong:       	White=2     	---        Brilliant:      	White=1     	---} 1-0

[Event "FISU WUMSCC Men 2024"]
[Site "Entebbe"]
[Date "2024.06.25"]
[Round "1.2"]
[White "Selepe, Lwazi"]
[Black "Szpar, Milosz"]
[Result "0-1"]
[ECO "C09"]
[WhiteElo "1913"]
[BlackElo "2497"]
[Annotator "TA"]
[PlyCount "68"]
[EventDate "2024.06.24"]
[EventType "swiss"]
[EventCountry "UGA"]
[SourceTitle "playchess.com"]
[Source "ChessBase"]
[SourceQuality "1"]
[TimeControl "5400+30"]

{[%evp 11,68,20,30,11,15,0,0,-1,31,0,9,0,45,31,50,38,42,22,3,0,12,9,8,0,15,0,0,0,1,0,7,0,0,0,0,0,0,-6,0,-24,-16,-38,-25,-27,-22,-33,-27,-179,-181,-307,-315,-757,-749,-1046,-1016,-973,-929,-1704,-1641]} 1. e4 {[%emt 0:00:18]} e6 {[%emt 0:00:11]} 2. d4 {[%emt 0:00:12]} d5 {[%emt 0:00:06]} 3. Nd2 {[%emt 0:00:10]} c5 {[%emt 0:00:41]} 4. Ngf3 {[%emt 0:00:45]} Nc6 {[%emt 0:00:12]} 5. exd5 {[%emt 0:00:17]} exd5 {[%emt 0:00:06]} 6. Bb5 {[%emt 0:00:22]} Qe7+ {[%emt 0:00:53]} 7. Qe2 {[%emt 0:02:03]} Qxe2+ {[%emt 0:00:30]} 8. Bxe2 {[%emt 0:00:30]} Bf5 {[%emt 0:02:17]} 9. c3 {[%emt 0:00:28] The position is equal.} Nf6 {[%emt 0:01:12]} 10. dxc5 {[%emt 0:05:06]} Bxc5 {[%emt 0:00:14]} 11. Nb3 {[%emt 0:00:36]} Bd6 {[%emt 0:02:29]} 12. Nfd4 {[%emt 0:01:26]} Bd7 {[%emt 0:13:24]} 13. O-O {[%emt 0:04:47]} O-O {[%emt 0:00:59]} 14. f3 {[%emt 0:05:18]} h6 {[%emt 0:05:08]} 15. Bd3 {[%emt 0:04:25]} Ne5 {[%emt 0:01:59]} 16. Bf5 {[%emt 0:09:03]} Ba4 {[%emt 0:00:21]} 17. Bf4 {[%emt 0:04:30]} Rfe8 {[%emt 0:02:32]} 18. Bxe5 {[%emt 0:04:49]} Rxe5 {[%emt 0:01:43]} 19. Bd3 {[%emt 0:00:28]} Bd7 {[%emt 0:00:30]} 20. Rae1 {[%emt 0:00:30]} Rae8 {[%emt 0:00:30]} 21. Rxe5 {[%emt 0:00:30]} Rxe5 {[%emt 0:00:30]} 22. Rf2 {[%emt 0:00:30]} Re3 {[%emt 0:00:30]} 23. Be2 {[%emt 0:00:30]} h5 {[%emt 0:00:30]} 24. Nc2 {[%emt 0:00:30]} Re5 {[%emt 0:15:40]} 25. Bd3 {[%emt 0:15:06]} h4 {[%emt 0:00:38]} 26. Re2 {[%emt 0:01:20]} Rg5 {[%emt 0:00:20]} 27. Nbd4 {[%emt 0:07:10]} a6 {[%emt 0:04:12]} 28. Ne3 {[%emt 0:03:13]} g6 {[%emt 0:01:19] Repels Nef5} 29. h3 $2 {[%emt 0:03:22] [#] Loses the game.} Bxh3 $19 {[%emt 0:00:30]} 30. f4 {[%emt 0:00:30]} (30. Kf1 $142 Bd7 31. Re1) 30... Bxf4 {[%emt 0:00:30] This pair of bishops is nice.} 31. Nf3 $2 {[%emt 0:00:30]} (31. Nf1) 31... Bxe3+ {[%emt 0:00:30] Black is clearly winning.} 32. Rxe3 {[%emt 0:00:30]} Rxg2+ {[%emt 0:00:30]} 33. Kf1 {[%emt 0:00:30]} Rg3+ {[%emt 0:00:30]} 34. Kf2 {[%emt 0:00:30]} Ng4+ {[%emt 0:00:30] Weighted Error Value: White=0.64/Black=0.06 (flawless) .  Mistake:       	White=3     	---        Inaccurate:     	White=1     	Black=2      OK:         	White=5     	Black=8      Best:        	---       	Black=3} 0-1

[Event "FISU WUMSCC Men 2024"]
[Site "Entebbe"]
[Date "2024.06.25"]
[Round "1.3"]
[White "Gatineau, Yovann"]
[Black "Kato, Richard"]
[Result "1-0"]
[ECO "E11"]
[WhiteElo "2414"]
[BlackElo "1908"]
[Annotator "RC"]
[PlyCount "103"]
[EventDate "2024.06.24"]
[EventType "swiss"]
[EventCountry "UGA"]
[SourceTitle "playchess.com"]
[Source "ChessBase"]
[SourceQuality "1"]
[TimeControl "5400+30"]

1. d4 {[%emt 0:00:01]} e6 {[%emt 0:00:55]} 2. c4 {[%emt 0:00:08]} f5 {[%emt 0:00:10]} 3. Nf3 {[%emt 0:00:25]} Nf6 {[%emt 0:00:44]} 4. g3 {[%emt 0:00:05]} Bb4+ {[%emt 0:00:43]} 5. Bd2 {[%emt 0:00:53]} Qe7 {[%emt 0:02:36]} 6. Bg2 {[%emt 0:02:19]} O-O {[%emt 0:01:25]} 7. O-O {[%emt 0:00:14]} Bxd2 {[%emt 0:07:00]} 8. Qxd2 {[%emt 0:02:11]} Ne4 {[%emt 0:01:13]} 9. Qc2 {[%emt 0:00:53]} Nc6 {[%emt 0:09:35]} 10. Nc3 {[%emt 0:00:52]} Nxc3 {[%emt 0:04:51]} 11. Qxc3 {[%emt 0:00:07]} d6 {[%emt 0:00:07]} 12. d5 {[%emt 0:04:29]} Nd8 {[%emt 0:00:19]} 13. dxe6 {[%emt 0:00:24]} Nxe6 {[%emt 0:01:34]} 14. e3 {[%emt 0:01:24]} Rb8 {[%emt 0:10:14]} 15. Nd2 {[%emt 0:25:17]} b6 {[%emt 0:11:44]} 16. Rae1 {[%emt 0:04:16]} Bb7 {[%emt 0:05:24]} 17. Bxb7 {[%emt 0:05:20]} Rxb7 {[%emt 0:00:01]} 18. b4 a6 {[%emt 0:06:33]} 19. f4 {[%emt 0:16:59]} Rbb8 {[%emt 0:14:04]} 20. e4 {[%emt 0:00:44]} Qf7 {[%emt 0:09:46]} 21. Qd3 {[%emt 0:05:18]} Rbe8 {[%emt 0:03:53]} 22. exf5 {[%emt 0:16:59]} Qxf5 {[%emt 0:00:03]} 23. Qxf5 {[%emt 0:00:12]} Rxf5 {[%emt 0:00:02]} 24. Re3 {[%emt 0:03:05]} Rff8 {[%emt 0:00:13]} 25. Rfe1 {[%emt 0:00:16]} Kf7 {[%emt 0:00:41]} 26. Nf3 {[%emt 0:02:45]} h6 {[%emt 0:00:10]} 27. Kf2 {[%emt 0:01:21]} a5 {[%emt 0:04:49]} 28. a3 {[%emt 0:00:54]} axb4 {[%emt 0:00:01]} 29. axb4 {[%emt 0:00:05]} Nd8 {[%emt 0:00:16]} 30. Nd4 {[%emt 0:01:56]} Rxe3 {[%emt 0:01:38]} 31. Rxe3 {[%emt 0:00:02]} Re8 {[%emt 0:02:10]} 32. Rd3 {[%emt 0:00:04]} Kf6 {[%emt 0:01:23]} 33. Nb5 {[%emt 0:02:01]} Re7 {[%emt 0:00:28]} 34. Nc3 {[%emt 0:02:03]} Kf7 {[%emt 0:01:22]} 35. Kf3 {[%emt 0:00:40]} Nc6 {[%emt 0:00:12]} 36. Nd5 {[%emt 0:00:09]} Rd7 {[%emt 0:00:06]} 37. h4 {[%emt 0:01:08]} Ne7 {[%emt 0:00:37]} 38. Ke4 {[%emt 0:01:18]} Nc8 {[%emt 0:01:50]} 39. b5 {[%emt 0:00:30]} Ne7 {[%emt 0:00:17]} 40. h5 {[%emt 0:01:27]} Nxd5 {[%emt 0:00:36]} 41. Kxd5 {[%emt 0:00:07]} Re7 {[%emt 0:00:01]} 42. Kc6 {[%emt 0:00:21]} Kf6 {[%emt 0:00:50]} 43. Ra3 {[%emt 0:00:35]} Re4 {[%emt 0:00:50]} 44. Rc3 {[%emt 0:00:22]} Re7 {[%emt 0:00:02]} 45. Ra3 {[%emt 0:01:07]} Re4 {[%emt 0:00:02]} 46. Kxc7 {[%emt 0:00:41]} Rxc4+ {[%emt 0:00:01]} 47. Kxb6 {[%emt 0:00:08]} Rc5 {[%emt 0:01:18]} 48. Ka6 {[%emt 0:00:10]} Rc8 {[%emt 0:00:30]} 49. Ka7 {[%emt 0:00:22]} Ke6 {[%emt 0:00:34]} 50. b6 {[%emt 0:00:11]} Kd7 {[%emt 0:01:05]} 51. b7 {[%emt 0:00:08]} Rc7 {[%emt 0:00:24]} 52. Ka8 {[%emt 0:00:21]} 1-0

[Event "FISU WUMSCC Men 2024"]
[Site "Entebbe"]
[Date "2024.06.25"]
[Round "1.4"]
[White "Mthembu, Lovers"]
[Black "Jakab, Bela"]
[Result "0-1"]
[ECO "C01"]
[WhiteElo "1876"]
[BlackElo "2390"]
[Annotator "RC"]
[PlyCount "138"]
[EventDate "2024.06.24"]
[EventType "swiss"]
[EventCountry "UGA"]
[SourceTitle "playchess.com"]
[Source "ChessBase"]
[SourceQuality "1"]
[TimeControl "5400+30"]

1. e4 {[%emt 0:00:03]} e6 {[%emt 0:00:08]} 2. d4 {[%emt 0:00:05]} d5 {[%emt 0:00:03]} 3. exd5 {[%emt 0:00:05]} exd5 {[%emt 0:00:05]} 4. Nf3 {[%emt 0:00:10]} Bd6 {[%emt 0:00:09]} 5. Bd3 {[%emt 0:00:22]} Ne7 {[%emt 0:00:31]} 6. O-O {[%emt 0:00:12]} O-O {[%emt 0:00:45]} 7. c3 {[%emt 0:05:11]} Bf5 {[%emt 0:06:22]} 8. Be3 {[%emt 0:01:15]} Nbc6 {[%emt 0:00:55]} 9. Qc2 {[%emt 0:00:58]} Qd7 {[%emt 0:01:03]} 10. Nbd2 {[%emt 0:00:25]} Bg6 {[%emt 0:04:59]} 11. Rfe1 {[%emt 0:15:10]} a5 {[%emt 0:05:36]} 12. Bg5 {[%emt 0:06:08]} a4 {[%emt 0:06:34]} 13. Re2 {[%emt 0:09:52]} f6 {[%emt 0:06:42]} 14. Bh4 {[%emt 0:00:07]} Bxd3 {[%emt 0:03:08]} 15. Qxd3 {[%emt 0:00:19]} Qf5 {[%emt 0:00:22]} 16. Qxf5 {[%emt 0:00:35]} Nxf5 {[%emt 0:00:06]} 17. Bg3 {[%emt 0:00:03]} Nxg3 {[%emt 0:00:29]} 18. hxg3 {[%emt 0:00:07]} b5 {[%emt 0:00:53]} 19. Nf1 {[%emt 0:02:06]} Kf7 {[%emt 0:01:25]} 20. Ne3 {[%emt 0:00:52]} Ne7 {[%emt 0:00:11]} 21. Rae1 {[%emt 0:00:29]} Rfd8 {[%emt 0:13:16]} 22. g4 {[%emt 0:02:12]} h6 {[%emt 0:09:52]} 23. g3 {[%emt 0:05:33]} g6 {[%emt 0:01:56]} 24. Kg2 c6 {[%emt 0:01:00]} 25. Rh1 {[%emt 0:02:36]} Rh8 {[%emt 0:01:32]} 26. Ne1 {[%emt 0:00:23]} Nc8 {[%emt 0:02:47]} 27. Nd3 {[%emt 0:00:37]} Nb6 {[%emt 0:00:16]} 28. a3 {[%emt 0:05:50]} Rae8 {[%emt 0:00:54]} 29. Rhe1 {[%emt 0:02:42]} Re7 {[%emt 0:02:18]} 30. Nc2 {[%emt 0:02:30]} Nc4 {[%emt 0:04:25]} 31. Ncb4 {[%emt 0:10:53]} Rxe2 {[%emt 0:08:33]} 32. Rxe2 {[%emt 0:28:40]} Rc8 {[%emt 0:00:09]} 33. Kf1 {[%emt 0:00:00]} Na5 {[%emt 0:00:52]} 34. Kg2 {[%emt 0:00:00]} Nb7 {[%emt 0:00:32]} 35. f4 {[%emt 0:00:00]} Bf8 {[%emt 0:04:11]} 36. f5 {[%emt 0:00:00]} g5 {[%emt 0:02:30]} 37. Re6 {[%emt 0:00:00]} Nd8 {[%emt 0:00:06]} 38. Re2 {[%emt 0:00:00]} Rc7 {[%emt 0:00:36]} 39. Na6 {[%emt 0:00:00]} Re7 {[%emt 0:02:13]} 40. Rxe7+ {[%emt 0:00:00]} Bxe7 {[%emt 0:00:22]} 41. Nac5 {[%emt 0:00:00]} Bd6 {[%emt 0:00:25]} 42. Kf3 {[%emt 0:00:00]} Ke7 {[%emt 0:00:10]} 43. Kg2 {[%emt 0:00:00]} Nf7 {[%emt 0:02:21]} 44. Kf3 {[%emt 0:00:00]} Bxc5 {[%emt 0:02:05]} 45. Nxc5 {[%emt 0:00:00]} Nd6 {[%emt 0:00:11]} 46. Ke2 {[%emt 0:00:00]} Nc4 {[%emt 0:00:13]} 47. Nd3 {[%emt 0:00:00]} Kd6 {[%emt 0:00:15]} 48. Kf2 {[%emt 0:00:00]} Nd2 {[%emt 0:00:17]} 49. Ke3 {[%emt 0:04:13]} Ne4 {[%emt 0:00:10]} 50. Nf2 {[%emt 0:00:31]} Nxg3 {[%emt 0:03:24]} 51. Kf3 {[%emt 0:00:06]} Nf1 {[%emt 0:00:51]} 52. Ke2 {[%emt 0:00:05]} Nh2 {[%emt 0:00:13]} 53. Ke3 {[%emt 0:00:07]} c5 {[%emt 0:01:01]} 54. Ke2 {[%emt 0:01:28]} Kc6 {[%emt 0:00:29]} 55. Ke3 {[%emt 0:01:27]} b4 {[%emt 0:01:15]} 56. Kd3 {[%emt 0:02:02]} bxa3 {[%emt 0:00:55]} 57. bxa3 {[%emt 0:00:27]} Kb5 {[%emt 0:00:07]} 58. dxc5 {[%emt 0:00:57]} Kxc5 {[%emt 0:00:03]} 59. c4 {[%emt 0:00:40]} dxc4+ {[%emt 0:02:41]} 60. Kc3 {[%emt 0:00:05]} Kb5 {[%emt 0:00:54]} 61. Kd4 {[%emt 0:01:45]} Nf3+ {[%emt 0:00:09]} 62. Ke4 {[%emt 0:00:32]} Ne5 {[%emt 0:01:52]} 63. Kd4 {[%emt 0:00:07]} Kc6 {[%emt 0:00:45]} 64. Ne4 {[%emt 0:00:15]} Nxg4 {[%emt 0:00:05]} 65. Kxc4 {[%emt 0:00:12]} h5 {[%emt 0:00:25]} 66. Kb4 {[%emt 0:00:21]} h4 {[%emt 0:00:16]} 67. Kxa4 {[%emt 0:00:37]} h3 {[%emt 0:00:04]} 68. Ng3 {[%emt 0:00:23]} h2 {[%emt 0:00:11]} 69. Nh1 {[%emt 0:00:45]} Ne3 {[%emt 0:00:17]} 0-1

[Event "FISU WUMSCC Men 2024"]
[Site "Entebbe"]
[Date "2024.06.25"]
[Round "1.5"]
[White "Mladek, Richard"]
[Black "Hemeni, Simamnkele"]
[Result "1-0"]
[ECO "E51"]
[WhiteElo "2385"]
[BlackElo "1866"]
[Annotator "RC"]
[PlyCount "83"]
[EventDate "2024.06.24"]
[EventType "swiss"]
[EventCountry "UGA"]
[SourceTitle "playchess.com"]
[Source "ChessBase"]
[SourceQuality "1"]
[TimeControl "5400+30"]

1. d4 {[%emt 0:00:03]} Nf6 {[%emt 0:00:05]} 2. c4 {[%emt 0:00:06]} e6 {[%emt 0:00:04]} 3. Nc3 {[%emt 0:00:11]} Bb4 {[%emt 0:00:03]} 4. e3 {[%emt 0:00:15]} O-O {[%emt 0:00:04]} 5. Bd2 {[%emt 0:00:35]} d5 {[%emt 0:00:16]} 6. Nf3 {[%emt 0:00:18]} b6 {[%emt 0:00:26]} 7. Rc1 {[%emt 0:00:25]} dxc4 {[%emt 0:00:47]} 8. Bxc4 {[%emt 0:00:26]} Bb7 {[%emt 0:00:32]} 9. O-O {[%emt 0:05:02]} Nbd7 {[%emt 0:05:14]} 10. Qe2 {[%emt 0:05:38]} Qe7 {[%emt 0:06:05]} 11. a3 {[%emt 0:04:16]} Bxc3 {[%emt 0:00:21]} 12. Bxc3 {[%emt 0:00:10]} Ne4 {[%emt 0:00:36]} 13. Bb4 {[%emt 0:05:38]} c5 {[%emt 0:01:18]} 14. dxc5 {[%emt 0:00:10]} Nexc5 {[%emt 0:05:47]} 15. a4 {[%emt 0:02:32]} a5 {[%emt 0:02:54]} 16. Ba3 {[%emt 0:00:51]} Qf6 {[%emt 0:01:04]} 17. Bb5 {[%emt 0:01:29]} Rfc8 {[%emt 0:04:19]} 18. Rfd1 {[%emt 0:02:58]} Ne5 {[%emt 0:17:09]} 19. Nd4 {[%emt 0:02:48]} Qg6 {[%emt 0:06:15]} 20. f3 {[%emt 0:01:30]} Rc7 {[%emt 0:07:59]} 21. e4 {[%emt 0:02:40]} Rac8 {[%emt 0:04:05]} 22. Bxc5 {[%emt 0:08:41]} Rxc5 {[%emt 0:08:12]} 23. Rxc5 {[%emt 0:00:08]} bxc5 {[%emt 0:04:51]} 24. Nb3 {[%emt 0:01:06]} h5 {[%emt 0:01:03]} 25. Nxa5 {[%emt 0:02:05]} Ba8 {[%emt 0:00:42]} 26. Nc4 {[%emt 0:14:05]} Nxc4 {[%emt 0:03:21]} 27. Qxc4 {[%emt 0:00:38]} h4 {[%emt 0:00:34]} 28. h3 {[%emt 0:05:14]} Qf6 {[%emt 0:01:26]} 29. b4 {[%emt 0:01:49]} Qe5 {[%emt 0:00:02]} 30. bxc5 {[%emt 0:02:57]} Rxc5 {[%emt 0:00:57]} 31. Qd4 {[%emt 0:00:11]} Qxd4+ {[%emt 0:02:56]} 32. Rxd4 {[%emt 0:00:02]} Bc6 {[%emt 0:01:01]} 33. Rd8+ {[%emt 0:02:35]} Kh7 {[%emt 0:00:03]} 34. Rc8 {[%emt 0:01:23]} Rxb5 {[%emt 0:01:24]} 35. axb5 {[%emt 0:00:20]} Bxb5 {[%emt 0:00:22]} 36. Rc5 {[%emt 0:00:06]} Bd7 {[%emt 0:00:39]} 37. Rc7 {[%emt 0:00:40]} Ba4 {[%emt 0:00:48]} 38. Rxf7 {[%emt 0:00:07]} Kg6 {[%emt 0:00:03]} 39. Rf8 {[%emt 0:01:20]} Bb3 {[%emt 0:00:26]} 40. Kf2 {[%emt 0:00:12]} Ba4 {[%emt 0:00:04]} 41. Ke3 {[%emt 0:00:30]} e5 {[%emt 0:00:48]} 42. Rf5 {[%emt 0:00:08]} 1-0

[Event "FISU WUMSCC Men 2024"]
[Site "Entebbe"]
[Date "2024.06.25"]
[Round "1.6"]
[White "Alinda Collins"]
[Black "Defromont, Benjamin"]
[Result "0-1"]
[ECO "B33"]
[WhiteElo "1845"]
[BlackElo "2380"]
[Annotator "RC"]
[PlyCount "84"]
[EventDate "2024.06.24"]
[EventType "swiss"]
[EventCountry "UGA"]
[SourceTitle "playchess.com"]
[Source "ChessBase"]
[SourceQuality "1"]
[TimeControl "5400+30"]

1. e4 {[%emt 0:00:09]} c5 {[%emt 0:00:06]} 2. Nf3 {[%emt 0:01:24]} Nc6 {[%emt 0:00:07]} 3. d4 {[%emt 0:01:10]} cxd4 {[%emt 0:00:06]} 4. Nxd4 {[%emt 0:00:12]} Nf6 {[%emt 0:00:05]} 5. Nc3 {[%emt 0:00:52]} e5 {[%emt 0:01:12]} 6. Nf3 {[%emt 0:08:41]} Bb4 {[%emt 0:01:59]} 7. Bd3 {[%emt 0:01:50]} d5 {[%emt 0:04:02]} 8. Nd2 {[%emt 0:04:21]} dxe4 {[%emt 0:05:52]} 9. Ncxe4 {[%emt 0:01:26]} Nxe4 {[%emt 0:00:41]} 10. Bxe4 {[%emt 0:00:22]} f5 {[%emt 0:00:16]} 11. Bxc6+ {[%emt 0:03:27]} bxc6 {[%emt 0:00:04]} 12. O-O {[%emt 0:01:41]} Be6 {[%emt 0:03:14]} 13. c3 {[%emt 0:04:58]} Bd6 {[%emt 0:05:49]} 14. Qh5+ {[%emt 0:03:09]} g6 {[%emt 0:00:44]} 15. Qe2 {[%emt 0:00:23]} Qf6 {[%emt 0:04:08]} 16. Re1 {[%emt 0:02:26]} Bc7 {[%emt 0:03:52]} 17. Nf3 {[%emt 0:03:23]} e4 {[%emt 0:01:20]} 18. Bg5 {[%emt 0:08:00]} Qf7 {[%emt 0:00:12]} 19. Nd4 {[%emt 0:01:01]} Bc4 {[%emt 0:01:32]} 20. Qd1 {[%emt 0:00:53]} O-O {[%emt 0:02:09]} 21. Nxc6 {[%emt 0:01:06]} Rfe8 {[%emt 0:00:26]} 22. Qd4 {[%emt 0:03:26]} Bb6 23. Qd6 {[%emt 0:04:37]} h6 {[%emt 0:36:52]} 24. Be7 {[%emt 0:06:34]} Bb5 {[%emt 0:04:15]} 25. Rad1 {[%emt 0:19:44]} Bxc6 {[%emt 0:01:29]} 26. Qxc6 {[%emt 0:00:06]} Rac8 {[%emt 0:00:14]} 27. Qb7 {[%emt 0:01:21]} Rc7 {[%emt 0:00:08]} 28. Qa6 {[%emt 0:00:34]} Rcxe7 {[%emt 0:00:08]} 29. b3 {[%emt 0:00:41]} f4 {[%emt 0:00:35]} 30. c4 {[%emt 0:00:40]} e3 {[%emt 0:00:15]} 31. fxe3 {[%emt 0:00:16]} Rxe3 {[%emt 0:00:48]} 32. Kf1 {[%emt 0:00:34]} f3 {[%emt 0:00:49]} 33. Rxe3 {[%emt 0:01:03]} fxg2+ {[%emt 0:00:24]} 34. Kxg2 {[%emt 0:00:16]} Rxe3 {[%emt 0:00:11]} 35. Qc8+ {[%emt 0:00:40]} Re8 {[%emt 0:00:03]} 36. Qg4 {[%emt 0:00:44]} Rf8 {[%emt 0:01:59]} 37. Qg3 {[%emt 0:00:57]} Qb7+ {[%emt 0:02:29]} 38. Rd5 {[%emt 0:00:38]} Rf2+ {[%emt 0:00:06]} 39. Kh3 {[%emt 0:01:16]} Qc8+ {[%emt 0:00:10]} 40. Kh4 {[%emt 0:00:51]} Bd8+ {[%emt 0:00:04]} 41. Rxd8+ {[%emt 0:00:26]} Qxd8+ {[%emt 0:00:05]} 42. Kh3 {[%emt 0:00:20]} Qd7+ {[%emt 0:00:04]} 0-1

[Event "FISU WUMSCC Men 2024"]
[Site "Entebbe"]
[Date "2024.06.25"]
[Round "1.7"]
[White "Turcan, Richard"]
[Black "Wagner, Gerald"]
[Result "1-0"]
[ECO "C06"]
[WhiteElo "2374"]
[BlackElo "1832"]
[Annotator "RC"]
[PlyCount "61"]
[EventDate "2024.06.24"]
[EventType "swiss"]
[EventCountry "UGA"]
[SourceTitle "playchess.com"]
[Source "ChessBase"]
[SourceQuality "1"]
[TimeControl "5400+30"]

1. e4 {[%emt 0:00:03]} e6 {[%emt 0:00:08]} 2. d4 {[%emt 0:00:04]} d5 {[%emt 0:00:05]} 3. Nd2 {[%emt 0:00:03]} Nf6 {[%emt 0:00:07]} 4. e5 {[%emt 0:00:04]} Nfd7 {[%emt 0:00:06]} 5. Bd3 {[%emt 0:00:03]} c5 {[%emt 0:00:09]} 6. c3 {[%emt 0:00:07]} Nc6 {[%emt 0:00:06]} 7. Ne2 {[%emt 0:00:03]} Qb6 {[%emt 0:00:12]} 8. Nf3 {[%emt 0:00:08]} cxd4 {[%emt 0:00:10]} 9. cxd4 {[%emt 0:00:05]} f6 {[%emt 0:00:07]} 10. exf6 {[%emt 0:00:15]} Nxf6 {[%emt 0:00:07]} 11. O-O {[%emt 0:00:11]} Bd6 {[%emt 0:00:15]} 12. Bf4 {[%emt 0:05:33]} Bxf4 {[%emt 0:25:42]} 13. Nxf4 {[%emt 0:00:08]} O-O {[%emt 0:00:21]} 14. Qd2 {[%emt 0:06:31]} Bd7 {[%emt 0:02:37]} 15. Rfe1 {[%emt 0:04:49]} Rae8 {[%emt 0:00:03]} 16. Rac1 {[%emt 0:06:13]} Kh8 {[%emt 0:30:27]} 17. Bb1 {[%emt 0:02:59]} Re7 {[%emt 0:10:32]} 18. Rc3 {[%emt 0:06:23]} Qb4 {[%emt 0:05:14]} 19. a3 {[%emt 0:03:17]} Qd6 {[%emt 0:00:04]} 20. Ne5 {[%emt 0:01:15]} Be8 21. b4 {[%emt 0:08:34]} Ne4 {[%emt 0:06:30]} 22. Bxe4 {[%emt 0:02:12]} dxe4 {[%emt 0:02:23]} 23. Rxe4 {[%emt 0:01:18]} Nxe5 {[%emt 0:01:44]} 24. Rxe5 {[%emt 0:00:03]} Bc6 {[%emt 0:01:37]} 25. Qe3 {[%emt 0:09:23]} Rfe8 {[%emt 0:09:46]} 26. Rc1 {[%emt 0:01:22]} Kg8 {[%emt 0:00:45]} 27. Re1 {[%emt 0:00:10]} Kf7 {[%emt 0:00:28]} 28. h4 {[%emt 0:01:29]} b6 {[%emt 0:00:22]} 29. Nh5 {[%emt 0:01:51]} h6 {[%emt 0:02:15]} 30. Qg3 {[%emt 0:01:24]} Kf8 {[%emt 0:00:22]} 31. Rf5+ {[%emt 0:00:13]} 1-0